bitfinex/quotes_BTCUSD_20241004
["timestamp","ask_amount","ask_price","bid_price","bid_amount"]
[1728033274848,0.29183854,61669.0,61668.0,0.00976705]
[1728033275089,0.29383854,61669.0,61668.0,0.00976705]
[1728033275532,0.29183854,61669.0,61668.0,0.00976705]
[1728033275749,0.29583854,61669.0,61668.0,0.00976705]
[1728033275970,0.29383854,61669.0,61668.0,0.00976705]
[1728033276224,0.29183854,61669.0,61668.0,0.00976705]
[1728033276455,0.29383854,61669.0,61668.0,0.00976705]
[1728033276680,0.29583854,61669.0,61668.0,0.00976705]
[1728033277841,0.27041193,61669.0,61668.0,0.00976705]
[1728033278278,0.26641193,61669.0,61668.0,0.00976705]
[1728033278570,0.26641193,61669.0,61668.0,0.01076705]
[1728033278840,0.26741193,61669.0,61668.0,0.00976705]
[1728033279082,0.26741193,61669.0,61668.0,0.02514555]
[1728033279083,0.26641193,61669.0,61668.0,0.02514555]
[1728033279563,0.26641193,61669.0,61668.0,0.02614555]
[1728033280032,0.26641193,61669.0,61668.0,0.02514555]
[1728033280953,0.29183817,61669.0,61668.0,0.02514555]
[1728033284676,0.34030752,61669.0,61668.0,0.02514555]
[1728033284901,0.34030752,61669.0,61668.0,0.00976705]
[1728033285862,0.29183817,61669.0,61668.0,0.00976705]
[1728033287114,0.3403355,61669.0,61668.0,0.00976705]
[1728033287544,0.29183817,61669.0,61668.0,0.00976705]
[1728033287762,0.26641193,61669.0,61668.0,0.00976705]
[1728033288411,0.26641193,61669.0,61668.0,0.01076705]
[1728033288833,0.26641193,61669.0,61668.0,0.00976705]
[1728033289065,0.45418895,61669.0,61668.0,0.00976705]
[1728033289469,0.52689298,61669.0,61668.0,0.00976705]
[1728033289679,0.46235065,61669.0,61668.0,0.00976705]
[1728033290962,0.48777697,61669.0,61668.0,0.00976705]
[1728033292258,0.46235065,61669.0,61668.0,0.00976705]
[1728033292702,0.43391993,61669.0,61668.0,0.00976705]
[1728033293402,0.38539069,61669.0,61668.0,0.00976705]
[1728033294066,0.43393051,61669.0,61668.0,0.00976705]
[1728033294557,0.38539069,61669.0,61668.0,0.00976705]
[1728033295249,0.48352087,61669.0,61668.0,0.00976705]
[1728033295512,0.41081684,61669.0,61668.0,0.00976705]
[1728033296615,0.50775555,61669.0,61668.0,0.00976705]
[1728033297101,0.28758215,61669.0,61668.0,0.00976705]
[1728033297330,0.33502405,61669.0,61668.0,0.00976705]
[1728033300137,0.35909471,61669.0,61668.0,0.00976705]
[1728033300369,0.262156,61669.0,61668.0,0.00976705]
[1728033300593,0.40875538,61669.0,61668.0,0.00976705]
[1728033301512,0.28758199,61669.0,61668.0,0.00976705]
[1728033301733,0.29058199,61669.0,61668.0,0.00976705]
[1728033301974,0.41203135,61669.0,61668.0,0.00976705]
[1728033302200,0.41503135,61669.0,61668.0,0.00976705]
[1728033302413,0.41203135,61669.0,61668.0,0.00976705]
[1728033302632,0.36948199,61669.0,61668.0,0.00976705]
[1728033303311,0.36648199,61669.0,61668.0,0.00976705]
[1728033303561,0.36948199,61669.0,61668.0,0.00976705]
[1728033307007,0.344056,61669.0,61668.0,0.00976705]
[1728033307699,0.48994429,61669.0,61668.0,0.00976705]
[1728033308687,0.48993581,61669.0,61668.0,0.00976705]
[1728033308908,0.48993329,61669.0,61668.0,0.00976705]
[1728033309619,0.344056,61669.0,61668.0,0.00976705]
[1728033309858,0.48993774,61669.0,61668.0,0.00976705]
[1728033310089,0.344056,61669.0,61668.0,0.00976705]
[1728033310326,0.36948269,61669.0,61668.0,0.00976705]
[1728033311323,0.36862199,61669.0,61668.0,0.00976705]
[1728033313001,0.29272199,61669.0,61668.0,0.00976705]
[1728033313971,0.40831337,61669.0,61668.0,0.00976705]
[1728033314200,0.41031337,61669.0,61668.0,0.00976705]
[1728033315348,0.41031337,61669.0,61668.0,0.01076705]
[1728033315600,0.40831337,61669.0,61668.0,0.01076705]
[1728033315828,0.40831337,61669.0,61668.0,0.00976705]
[1728033316055,0.40931337,61669.0,61668.0,0.01276705]
[1728033316515,0.40931337,61669.0,61668.0,0.01076705]
[1728033316742,0.40831337,61669.0,61668.0,0.01176705]
[1728033316964,0.38288668,61669.0,61668.0,0.01176705]
[1728033317206,0.38288668,61669.0,61668.0,0.01276705]
[1728033318766,0.2612953,61669.0,61668.0,0.01276705]
[1728033318990,0.2612953,61669.0,61668.0,0.01176705]
[1728033319207,0.2612953,61669.0,61668.0,0.00976705]
[1728033320142,0.28672168,61669.0,61668.0,0.00976705]
[1728033321168,0.29072168,61669.0,61668.0,0.00976705]
[1728033322108,0.29472168,61669.0,61668.0,0.00976705]
[1728033323545,0.002,61665.0,61663.0,0.001638]
[1728033323791,0.55760369,61664.0,61663.0,0.001638]
[1728033325207,0.38541169,61661.0,61660.0,0.00226636]
[1728033325671,0.45209437,61661.0,61660.0,0.00226636]
[1728033325904,0.47552628,61661.0,61660.0,0.00226636]
[1728033326416,0.48852628,61661.0,61660.0,0.00226636]
[1728033326684,0.47552628,61661.0,61660.0,0.00226636]
[1728033326920,0.50052628,61661.0,61660.0,0.00226636]
[1728033327157,0.47509437,61661.0,61660.0,0.00226636]
[1728033327634,0.47928064,61661.0,61660.0,0.00226636]
[1728033328596,0.62488611,61661.0,61660.0,0.00226636]
[1728033329564,0.62488611,61661.0,61660.0,1e-08]
[1728033330557,0.50471222,61661.0,61660.0,1e-08]
[1728033331730,0.4096125,61661.0,61660.0,1e-08]
[1728033332000,0.28536364,61661.0,61660.0,1e-08]
[1728033332227,0.21260858,61661.0,61660.0,1e-08]
[1728033332464,0.21260858,61661.0,61660.0,0.08150001]
[1728033332465,0.03843158,61661.0,61660.0,0.08150001]
[1728033332707,0.02943158,61661.0,61660.0,0.33767901]
[1728033332944,0.02943158,61661.0,61660.0,0.35073682]
[1728033333170,0.02543158,61661.0,61660.0,0.35073682]
[1728033333394,0.02543158,61661.0,61660.0,1.62493682]
[1728033333646,0.02643158,61661.0,61660.0,1.62493682]
[1728033334609,0.02643158,61661.0,61660.0,1.62593682]
[1728033334610,0.02743158,61661.0,61660.0,1.62593682]
[1728033335060,0.02643158,61661.0,61660.0,1.62493682]
[1728033335519,0.02643158,61661.0,61660.0,1.62693682]
[1728033335760,0.02643158,61661.0,61660.0,1.46675782]
[1728033335761,0.02743158,61661.0,61660.0,1.46675782]
[1728033336206,0.02743158,61661.0,61660.0,1.62893682]
[1728033336426,0.02743158,61661.0,61660.0,1.46675782]
[1728033336646,0.02743158,61661.0,61660.0,1.47471204]
[1728033337164,0.02743158,61661.0,61660.0,1.45171204]
[1728033337165,0.28960858,61661.0,61660.0,1.45171204]
[1728033337416,0.02743158,61661.0,61660.0,1.61389104]
[1728033337657,0.002,61661.0,61660.0,1.61389104]
[1728033337910,0.001,61661.0,61660.0,1.61189104]
[1728033338403,0.001,61661.0,61660.0,1.63589104]
[1728033338644,0.162163,61667.0,61663.0,0.162171]
[1728033338883,0.1,61668.0,61663.0,0.162171]
[1728033339124,0.325133,61669.0,61664.0,0.01299334]
[1728033339393,0.162161,61667.0,61664.0,0.01299334]
[1728033339629,0.325133,61669.0,61665.0,0.0129871]
[1728033339866,0.162163,61666.0,61665.0,0.0129871]
[1728033340100,0.162163,61666.0,61663.0,0.024]
[1728033340326,0.162163,61666.0,61665.0,0.0129871]
[1728033340556,0.162166,61665.0,61664.0,0.01299334]
[1728033340787,0.162164,61666.0,61664.0,0.01299334]
[1728033341025,0.162164,61666.0,61663.0,0.001]
[1728033341026,0.162166,61665.0,61663.0,0.001]
[1728033341483,0.162166,61665.0,61661.0,0.185176]
[1728033341484,0.162169,61664.0,61661.0,0.185176]
[1728033341995,0.001,61665.0,61661.0,0.347351]
[1728033342228,0.001,61665.0,61663.0,0.024]
[1728033342464,0.18759067,61666.0,61663.0,0.024]
[1728033342465,0.18759067,61666.0,61663.0,0.023]
[1728033342709,0.001,61665.0,61664.0,0.01299334]
[1728033343417,0.002,61665.0,61664.0,0.01299334]
[1728033343875,0.164166,61665.0,61664.0,0.01299334]
[1728033344112,0.163166,61665.0,61664.0,0.01299334]
[1728033344608,0.18858967,61666.0,61664.0,0.01299334]
[1728033344813,0.18758967,61666.0,61664.0,0.01299334]
[1728033345032,0.002,61665.0,61664.0,0.01499334]
[1728033345264,0.164166,61665.0,61664.0,0.01499334]
[1728033345504,0.164166,61665.0,61664.0,0.01399334]
[1728033345739,0.162166,61665.0,61664.0,0.01299334]
[1728033345971,0.162166,61665.0,61664.0,0.002]
[1728033346183,0.162166,61665.0,61664.0,0.01297394]
[1728033346299,0.162166,61665.0,61664.0,0.01197394]
[1728033346539,0.163166,61665.0,61664.0,1.26417394]
[1728033347195,0.163166,61665.0,61664.0,1.26317394]
[1728033347439,0.164166,61665.0,61664.0,1.26417394]
[1728033351729,0.19041086,61665.0,61664.0,1.2723531]
[1728033357548,0.164985,61665.0,61664.0,1.2723531]
[1728033359995,0.163985,61665.0,61664.0,1.2713531]
[1728033360213,0.163985,61665.0,61664.0,1.2723531]
[1728033360874,0.18841091,61665.0,61664.0,1.2703531]
[1728033361123,0.18841091,61665.0,61664.0,1.2713531]
[1728033361338,0.18841091,61665.0,61664.0,1.2703531]
[1728033361561,0.18841091,61665.0,61664.0,1.2713531]
[1728033362007,0.162985,61665.0,61664.0,1.2723531]
[1728033362228,0.162985,61665.0,61664.0,1.2713531]
[1728033362645,0.163985,61665.0,61664.0,1.2713531]
[1728033363385,0.163985,61665.0,61664.0,1.2723531]
[1728033364056,0.162985,61665.0,61664.0,1.2703531]
[1728033364289,0.164985,61665.0,61664.0,1.2723531]
[1728033365042,0.002819,61665.0,61664.0,1.2723531]
[1728033365293,0.002819,61665.0,61664.0,1.4441531]
[1728033366225,0.164985,61665.0,61664.0,1.4441531]
[1728033366482,0.02824391,61665.0,61664.0,1.4441531]
[1728033367200,0.19040991,61665.0,61664.0,1.4441531]
[1728033367651,0.164985,61665.0,61664.0,1.4441531]
[1728033367923,0.38818638,61665.0,61664.0,1.2723531]
[1728033368161,0.56478638,61665.0,61664.0,1.2723531]
[1728033368410,0.441585,61665.0,61664.0,1.26137916]
[1728033368645,0.56478638,61665.0,61664.0,1.2706794]
[1728033368907,0.264985,61665.0,61664.0,1.2706794]
[1728033370336,0.264985,61665.0,61664.0,0.0194794]
[1728033370569,0.263985,61665.0,61664.0,0.0184794]
[1728033370790,0.262985,61665.0,61664.0,0.0184794]
[1728033371014,0.262985,61665.0,61664.0,0.0194794]
[1728033371241,0.262985,61665.0,61664.0,0.0184794]
[1728033371242,0.436285,61665.0,61664.0,0.0184794]
[1728033372394,0.441285,61665.0,61664.0,0.0174794]
[1728033372658,0.63720404,61665.0,61664.0,0.0174794]
[1728033372909,0.64420404,61665.0,61664.0,0.0174794]
[1728033373608,0.56648638,61665.0,61664.0,0.0174794]
[1728033374067,0.57348638,61665.0,61664.0,0.0174794]
[1728033374303,0.62200514,61665.0,61664.0,0.0174794]
[1728033374529,0.60800514,61665.0,61664.0,0.0174794]
[1728033374998,0.49680376,61665.0,61664.0,0.0174794]
[1728033375293,0.61300514,61665.0,61664.0,0.0174794]
[1728033375533,0.56548638,61665.0,61664.0,0.0174794]
[1728033375766,0.55948638,61665.0,61664.0,0.0174794]
[1728033375996,0.60803175,61665.0,61664.0,0.0174794]
[1728033376234,0.56648638,61665.0,61664.0,0.0174794]
[1728033376480,0.43473098,61665.0,61664.0,0.00817916]
[1728033376715,0.39218638,61665.0,61664.0,0.00817916]
[1728033376946,0.262177,61661.0,61660.0,1e-08]
[1728033377454,0.162177,61661.0,61660.0,0.09264109]
[1728033377684,0.330152,61665.0,61660.0,0.09263843]
[1728033377921,0.162172,61663.0,61660.0,0.09263843]
[1728033378159,0.162175,61662.0,61660.0,0.09263843]
[1728033378395,0.001,61661.0,61660.0,0.09263843]
[1728033378635,0.002,61661.0,61660.0,0.09463843]
[1728033378878,0.001,61661.0,61660.0,0.09263843]
[1728033379165,0.001,61661.0,61660.0,0.09463843]
[1728033379389,0.001,61661.0,61660.0,0.25481743]
[1728033379623,0.16217,61664.0,61660.0,0.25681743]
[1728033379858,0.001,61661.0,61660.0,0.25681743]
[1728033380081,0.001,61661.0,61660.0,0.25781743]
[1728033380306,0.001,61661.0,61660.0,0.09563843]
[1728033380548,0.001,61661.0,61660.0,0.27981743]
[1728033380775,0.001,61661.0,61660.0,0.28081743]
[1728033381007,0.02542632,61662.0,61661.0,0.185177]
[1728033381457,0.02542632,61662.0,61661.0,0.19504331]
[1728033381718,0.162985,61665.0,61661.0,0.19504331]
[1728033381950,0.000819,61665.0,61661.0,0.35721731]
[1728033382205,0.000819,61678.0,61664.0,0.22870138]
[1728033382451,0.000819,61678.0,61674.0,0.44748238]
[1728033382683,0.000819,61678.0,61676.0,0.0755]
[1728033382915,0.162951,61678.0,61676.0,0.0755]
[1728033383165,0.162134,61677.0,61676.0,0.0755]
[1728033383467,0.162134,61677.0,61670.0,0.324301]
[1728033383468,0.12320138,61677.0,61667.0,0.24343338]
[1728033383702,0.3496937,61677.0,61667.0,0.24343338]
[1728033383926,0.162156,61669.0,61667.0,0.24343338]
[1728033384426,0.324305,61671.0,61667.0,0.023]
[1728033384857,0.162155,61670.0,61667.0,0.03]
[1728033385088,0.162156,61669.0,61668.0,0.00980936]
[1728033386031,0.163156,61669.0,61668.0,0.00980936]
[1728033387664,0.164156,61669.0,61668.0,0.02080936]
[1728033387882,0.165156,61669.0,61668.0,0.03380936]
[1728033388130,0.165156,61669.0,61668.0,1.28500936]
[1728033388816,0.003,61669.0,61668.0,1.28500936]
[1728033391995,0.003,61669.0,61668.0,1.44716736]
[1728033392487,0.003,61669.0,61668.0,1.47016736]
[1728033394337,0.003,61669.0,61668.0,1.47811946]
[1728033398927,0.003,61669.0,61668.0,1.47975746]
[1728033399165,0.003819,61669.0,61668.0,1.47975746]
[1728033399395,0.003819,61669.0,61668.0,1.31759946]
[1728033399627,0.003819,61669.0,61668.0,1.47975746]
[1728033400083,0.002819,61669.0,61668.0,1.46675746]
[1728033400333,0.164975,61669.0,61668.0,1.28159946]
[1728033400586,0.163975,61669.0,61668.0,1.27759946]
[1728033400823,0.164975,61669.0,61668.0,1.28759946]
[1728033401052,0.18939869,61669.0,61668.0,1.28059946]
[1728033401538,0.18839869,61669.0,61668.0,1.27059946]
[1728033401777,0.18939869,61669.0,61668.0,1.28059946]
[1728033402289,0.18839869,61669.0,61668.0,1.27059946]
[1728033402531,0.19039869,61669.0,61668.0,1.28859946]
[1728033402761,0.02824269,61669.0,61668.0,1.57345746]
[1728033403016,0.02724269,61669.0,61668.0,1.64725746]
[1728033403265,0.02824269,61669.0,61668.0,1.65525746]
[1728033403779,0.02624269,61669.0,61668.0,1.63725746]
[1728033404251,0.02824269,61669.0,61668.0,1.65525746]
[1728033404494,0.02724269,61669.0,61668.0,1.64525746]
[1728033404722,0.02824269,61669.0,61668.0,1.65525746]
[1728033407847,0.002819,61669.0,61668.0,1.65525746]
[1728033409737,0.001819,61669.0,61668.0,1.64925746]
[1728033410004,0.002819,61669.0,61668.0,1.65725746]
[1728033410469,0.000819,61669.0,61668.0,1.63925746]
[1728033410931,0.22772707,61681.0,61680.0,0.162127]
[1728033411167,0.22772707,61681.0,61680.0,1.436327]
[1728033411389,0.02541898,61682.0,61681.0,0.185124]
[1728033411849,0.02541898,61682.0,61681.0,0.19542359]
[1728033412078,0.0026598,61682.0,61681.0,0.19542359]
[1728033412306,0.162101,61690.0,61685.0,0.162112]
[1728033412548,0.1,61689.0,61685.0,0.023]
[1728033412784,0.262104,61689.0,61686.0,0.01023723]
[1728033413490,0.42421,61689.0,61686.0,0.01023723]
[1728033413713,0.162108,61687.0,61686.0,0.01023723]
[1728033413939,0.262104,61689.0,61686.0,0.01023723]
[1728033414872,0.000819,61692.0,61691.0,0.162098]
[1728033415103,0.000819,61692.0,61691.0,0.185098]
[1728033416006,0.000819,61692.0,61691.0,0.191098]
[1728033417197,0.162914,61692.0,61691.0,0.006]
[1728033417936,0.162914,61692.0,61691.0,1.2572]
[1728033418182,0.162914,61692.0,61691.0,1.2632]
[1728033418899,0.162914,61692.0,61691.0,1.273403]
[1728033420855,0.000819,61692.0,61691.0,1.435501]
[1728033421092,0.000819,61692.0,61691.0,1.44349394]
[1728033421326,0.000819,61692.0,61691.0,1.46649394]
[1728033423212,0.000819,61692.0,61691.0,1.46049394]
[1728033423850,0.000819,61692.0,61691.0,1.45449394]
[1728033424103,0.000819,61692.0,61691.0,1.46849394]
[1728033424543,0.000819,61692.0,61691.0,1.48049394]
[1728033425013,0.1,61703.0,61691.0,1.48049394]
[1728033425014,0.000819,61704.0,61701.0,0.0901]
[1728033425260,0.09714281,61717.0,61705.0,0.16206]
[1728033425261,0.24343338,61706.0,61705.0,0.16206]
[1728033425507,0.02541126,61713.0,61708.0,0.023]
[1728033426207,0.02541126,61713.0,61710.0,0.162047]
[1728033426709,0.02541126,61713.0,61712.0,0.162043]
[1728033427623,0.262225,61719.0,61710.0,0.324095]
[1728033427855,0.02540787,61718.0,61713.0,0.324078]
[1728033428093,0.02540787,61718.0,61715.0,0.162033]
[1728033428327,0.02540787,61718.0,61713.0,0.324078]
[1728033428549,0.02540787,61718.0,61716.0,0.162032]
[1728033428776,0.02540787,61718.0,61714.0,0.324072]
[1728033429004,0.0002,61719.0,61718.0,0.185027]
[1728033429497,0.0002,61719.0,61718.0,0.19539184]
[1728033432039,0.0002,61719.0,61718.0,0.20239184]
[1728033432264,0.0002,61719.0,61718.0,0.21039184]
[1728033432743,0.162224,61719.0,61718.0,1.27656484]
[1728033433430,0.0002,61719.0,61718.0,1.27656484]
[1728033434940,0.0002,61719.0,61718.0,1.43859184]
[1728033436045,0.001019,61719.0,61718.0,1.46159184]
[1728033436254,0.001019,61719.0,61718.0,1.46979499]
[1728033443768,0.001019,61719.0,61718.0,1.54589499]
[1728033445625,0.001019,61719.0,61718.0,1.54789499]
[1728033445842,0.001019,61719.0,61718.0,1.54589499]
[1728033448679,0.35075085,61719.0,61718.0,1.28476799]
[1728033448898,0.079719,61719.0,61718.0,1.28476799]
[1728033449138,0.001019,61719.0,61718.0,1.28476799]
[1728033449386,0.001019,61719.0,61718.0,1.44679499]
[1728033449626,0.001019,61719.0,61718.0,1.28476799]
[1728033451896,0.001019,61719.0,61718.0,1.44679499]
[1728033452425,0.001019,61719.0,61718.0,1.28476799]
[1728033452643,0.001019,61719.0,61718.0,1.44679499]
[1728033452864,0.001019,61719.0,61718.0,1.28476799]
[1728033455580,0.163043,61719.0,61718.0,1.28476799]
[1728033456771,0.62365085,61719.0,61718.0,1.28476799]
[1728033457209,0.62365085,61719.0,61718.0,1.27440315]
[1728033457672,0.62365085,61719.0,61718.0,1.2758646]
[1728033457893,0.435943,61719.0,61718.0,1.2758646]
[1728033458108,0.435943,61719.0,61718.0,1.2678646]
[1728033458323,0.435943,61719.0,61718.0,1.2688646]
[1728033458791,0.435943,61719.0,61718.0,1.2698646]
[1728033460167,0.46134797,61719.0,61718.0,1.2698646]
[1728033461117,0.28844797,61719.0,61718.0,1.2698646]
[1728033465757,0.38654797,61719.0,61718.0,1.2698646]
[1728033466171,0.46754797,61719.0,61718.0,0.0186646]
[1728033466609,0.46754797,61719.0,61718.0,0.00920315]
[1728033466821,0.46854797,61719.0,61718.0,0.00920315]
[1728033467049,0.46854797,61719.0,61707.0,0.24343338]
[1728033467050,0.1,61718.0,61707.0,0.24343338]
[1728033467270,0.61886085,61708.0,61707.0,0.24343338]
[1728033467738,0.162082,61697.0,61696.0,1.2512]
[1728033469511,0.162082,61697.0,61696.0,1.2542]
[1728033469737,0.32416,61698.0,61696.0,1.2512]
[1728033469738,0.16208,61698.0,61696.0,1.2512]
[1728033469956,0.324154,61699.0,61696.0,1.2512]
[1728033470185,0.162081,61698.0,61697.0,0.01106556]
[1728033471108,0.162081,61698.0,61697.0,1.26226556]
[1728033471829,0.163081,61698.0,61697.0,1.27826556]
[1728033472052,0.163081,61698.0,61697.0,1.27026556]
[1728033472958,0.162081,61698.0,61697.0,1.27026556]
[1728033473187,0.163081,61698.0,61697.0,1.27826556]
[1728033473614,0.162081,61698.0,61697.0,1.27026556]
[1728033474052,0.163081,61698.0,61697.0,1.27026556]
[1728033474520,0.163081,61698.0,61697.0,1.27826556]
[1728033475186,0.001,61698.0,61697.0,1.55454756]
[1728033475411,0.001,61698.0,61697.0,1.39246556]
[1728033475891,0.16207,61702.0,61698.0,0.023]
[1728033476117,0.18747986,61703.0,61698.0,0.023]
[1728033476343,0.18747786,61703.0,61699.0,0.01107111]
[1728033476569,0.02541186,61703.0,61700.0,0.023]
[1728033477000,0.02541186,61703.0,61701.0,1.2622524]
[1728033477697,0.16206,61706.0,61701.0,1.2622524]
[1728033478354,0.162069,61702.0,61701.0,1.2622524]
[1728033479281,0.324133,61704.0,61701.0,1.2732524]
[1728033479524,0.162069,61702.0,61701.0,1.2672524]
[1728033479746,0.18770785,61702.0,61701.0,1.2682524]
[1728033480208,0.18770785,61702.0,61701.0,1.2732524]
[1728033480653,0.34977685,61702.0,61701.0,1.2682524]
[1728033480903,0.324116,61707.0,61701.0,1.2682524]
[1728033480904,0.162065,61704.0,61701.0,1.2722524]
[1728033481132,0.162065,61704.0,61701.0,1.2662524]
[1728033481576,0.162065,61704.0,61701.0,1.2712524]
[1728033481807,0.162067,61703.0,61701.0,1.2662524]
[1728033482078,0.162067,61703.0,61701.0,1.2752524]
[1728033482272,0.162067,61703.0,61701.0,1.2622524]
[1728033482809,0.162067,61703.0,61701.0,1.2782524]
[1728033483042,0.162067,61703.0,61702.0,1.2512]
[1728033483533,0.162067,61703.0,61702.0,1.26222113]
[1728033484725,0.162066,61703.0,61702.0,1.26222113]
[1728033484946,0.162066,61703.0,61702.0,1.27122113]
[1728033485173,0.162066,61703.0,61702.0,1.26222113]
[1728033485648,0.162066,61703.0,61702.0,1.27122113]
[1728033485942,0.241866,61703.0,61702.0,1.27022113]
[1728033486180,0.24597367,61703.0,61702.0,1.27222113]
[1728033486632,0.24597367,61703.0,61702.0,1.28122113]
[1728033487361,0.24597367,61703.0,61702.0,1.27122113]
[1728033487589,0.34597367,61703.0,61702.0,1.26222113]
[1728033487850,0.34597367,61703.0,61702.0,1.27122113]
[1728033488080,0.34597367,61703.0,61702.0,1.26222113]
[1728033488339,0.341866,61703.0,61702.0,1.26322113]
[1728033488582,0.52957385,61703.0,61702.0,1.26222113]
[1728033488820,0.53057385,61703.0,61702.0,1.26222113]
[1728033489043,0.53057385,61703.0,61702.0,0.0201783]
[1728033489270,0.62617385,61703.0,61702.0,0.0201783]
[1728033489520,0.62617385,61703.0,61702.0,0.0191783]
[1728033489967,0.62817385,61703.0,61702.0,0.0191783]
[1728033490458,0.62517385,61703.0,61702.0,0.0191783]
[1728033490915,0.62817385,61703.0,61702.0,0.0191783]
[1728033491156,0.6525852,61703.0,61702.0,0.0191783]
[1728033491404,0.6535852,61703.0,61702.0,0.0191783]
[1728033492147,0.6515852,61703.0,61702.0,0.0191783]
[1728033492381,0.6525852,61703.0,61702.0,0.0191783]
[1728033492836,0.6515852,61703.0,61702.0,0.0191783]
[1728033493081,0.6525852,61703.0,61702.0,0.0191783]
[1728033493608,0.6515852,61703.0,61702.0,0.0191783]
[1728033493839,0.6505852,61703.0,61702.0,0.0191783]
[1728033494074,0.6525852,61703.0,61702.0,0.0191783]
[1728033494333,0.6515852,61703.0,61702.0,0.0191783]
[1728033494563,0.6525852,61703.0,61702.0,0.0191783]
[1728033495245,0.6525852,61703.0,61702.0,0.00815717]
[1728033495732,0.262069,61702.0,61701.0,0.001638]
[1728033497093,0.263069,61702.0,61701.0,0.001638]
[1728033497379,0.264069,61702.0,61701.0,0.001638]
[1728033497621,0.263069,61702.0,61701.0,0.001638]
[1728033498084,0.264069,61702.0,61701.0,0.001638]
[1728033498320,0.263069,61702.0,61701.0,0.001638]
[1728033498795,0.265069,61702.0,61701.0,0.001638]
[1728033499265,0.262069,61702.0,61701.0,0.001638]
[1728033499483,0.267069,61702.0,61701.0,0.002638]
[1728033499938,0.262069,61702.0,61701.0,0.002638]
[1728033500165,0.270069,61702.0,61701.0,0.002638]
[1728033500407,0.267069,61702.0,61701.0,0.001638]
[1728033500641,0.267069,61702.0,61701.0,0.002638]
[1728033500864,0.275069,61702.0,61701.0,0.002638]
[1728033501124,0.275069,61702.0,61701.0,0.001638]
[1728033501125,0.29248224,61702.0,61701.0,0.001638]
[1728033501368,0.34794358,61702.0,61701.0,0.002638]
[1728033501585,0.162082,61697.0,61696.0,0.001638]
[1728033501835,0.44978985,61697.0,61696.0,0.001638]
[1728033502052,0.162103,61689.0,61682.0,0.805432]
[1728033502533,0.262103,61689.0,61688.0,0.01124401]
[1728033502761,0.262103,61689.0,61682.0,0.730032]
[1728033502762,0.162119,61683.0,61682.0,0.730032]
[1728033503004,0.34982685,61683.0,61682.0,0.001638]
[1728033503251,0.34982685,61683.0,61682.0,0.01295317]
[1728033503949,0.34982685,61683.0,61682.0,0.02095317]
[1728033503950,0.35082685,61683.0,61682.0,0.02095317]
[1728033504904,0.34982685,61683.0,61682.0,0.01295317]
[1728033505121,0.35082685,61683.0,61682.0,0.02095317]
[1728033505345,0.164119,61683.0,61682.0,0.02795317]
[1728033505797,0.163119,61683.0,61682.0,0.02095317]
[1728033506036,0.35182685,61683.0,61682.0,0.02795317]
[1728033506539,0.34982685,61683.0,61682.0,0.01295317]
[1728033506796,0.35082685,61683.0,61682.0,0.01295317]
[1728033507012,0.35082685,61683.0,61682.0,0.02805624]
[1728033507235,0.35182685,61683.0,61682.0,0.01674107]
[1728033507461,0.35082685,61683.0,61682.0,0.01674107]
[1728033507908,0.35182685,61683.0,61682.0,0.01674107]
[1728033508128,0.34982685,61683.0,61682.0,0.00974107]
[1728033508360,0.34982685,61683.0,61682.0,0.01674107]
[1728033508587,0.35082685,61683.0,61682.0,0.01674107]
[1728033509100,0.34982685,61683.0,61682.0,0.00974107]
[1728033509322,0.34982685,61683.0,61682.0,0.01274107]
[1728033509774,0.34982685,61683.0,61682.0,0.00974107]
[1728033509999,0.35082685,61683.0,61682.0,0.01674107]
[1728033510515,0.37624512,61683.0,61682.0,0.01674107]
[1728033510993,0.37624512,61683.0,61682.0,0.02074107]
[1728033511228,0.37624512,61683.0,61682.0,0.01674107]
[1728033511675,0.37724512,61683.0,61682.0,0.01674107]
[1728033511920,0.37524512,61683.0,61682.0,0.00974107]
[1728033512151,0.37524512,61683.0,61682.0,0.01374107]
[1728033512627,0.37524512,61683.0,61682.0,0.00974107]
[1728033513077,0.37524512,61683.0,61682.0,0.01174107]
[1728033513562,0.37524512,61683.0,61682.0,0.00974107]
[1728033513822,0.18753727,61683.0,61682.0,0.01174107]
[1728033514548,0.18753727,61683.0,61682.0,0.19154107]
[1728033514999,0.18753727,61683.0,61682.0,0.09444107]
[1728033515219,0.18753727,61683.0,61682.0,0.10361831]
[1728033515452,0.18753727,61683.0,61682.0,0.02391831]
[1728033517469,0.162119,61683.0,61682.0,0.02391831]
[1728033519326,0.34982685,61683.0,61682.0,0.02391831]
[1728033520659,0.37524468,61683.0,61682.0,0.02391831]
[1728033521792,0.31069778,61683.0,61682.0,0.02391831]
[1728033522919,0.18753683,61683.0,61682.0,0.02391831]
[1728033523144,0.31069778,61683.0,61682.0,0.02391831]
[1728033525018,0.31069778,61683.0,61682.0,0.01474107]
[1728033525691,0.37519293,61683.0,61682.0,0.01474107]
[1728033526597,0.35495328,61683.0,61682.0,0.01474107]
[1728033527691,0.32953545,61683.0,61682.0,0.01474107]
[1728033530460,0.5118731,61687.0,61682.0,0.01474107]
[1728033530667,0.162116,61684.0,61683.0,0.1687]
[1728033530895,0.162116,61684.0,61683.0,0.17787377]
[1728033531121,0.162116,61684.0,61683.0,0.08767377]
[1728033531353,0.162119,61683.0,61682.0,0.004638]
[1728033531612,0.162119,61683.0,61682.0,0.001638]
[1728033532370,0.162938,61683.0,61682.0,0.001638]
[1728033532817,0.163938,61683.0,61682.0,0.006638]
[1728033533725,0.164938,61683.0,61682.0,0.014638]
[1728033533947,0.163938,61683.0,61682.0,0.009638]
[1728033534168,0.162938,61683.0,61682.0,0.001638]
[1728033534404,0.163938,61683.0,61682.0,0.007638]
[1728033534634,0.163938,61683.0,61682.0,0.012638]
[1728033535288,0.163938,61683.0,61682.0,0.02072024]
[1728033539433,0.245638,61683.0,61682.0,0.02072024]
[1728033539649,0.29421306,61683.0,61682.0,0.02072024]
[1728033539917,0.245638,61683.0,61682.0,0.02072024]
[1728033540140,0.29424879,61683.0,61682.0,0.02072024]
[1728033540598,0.245638,61683.0,61682.0,0.02072024]
[1728033540841,0.44278813,61683.0,61682.0,0.02072024]
[1728033541087,0.37105774,61683.0,61682.0,0.02072024]
[1728033541578,0.4914954,61683.0,61682.0,0.00972024]
[1728033542050,0.4914954,61683.0,61682.0,0.01272024]
[1728033542051,0.37005774,61683.0,61682.0,0.01272024]
[1728033542277,0.37005774,61683.0,61682.0,0.00972024]
[1728033542530,0.37422754,61683.0,61682.0,0.00972024]
[1728033542765,0.37422754,61683.0,61669.0,0.728394]